bitfinex/quotes_SOLUSD_20241107
["timestamp","ask_amount","ask_price","bid_price","bid_amount"]
[1730957247674,7.87686591,188.82,188.8,2.11873538]
[1730957247875,7.87686591,188.82,188.81,2.11873538]
[1730957248988,7.87686591,188.82,188.76,7.87686591]
[1730957249191,7.87686591,188.82,188.77,2.11852725]
[1730957249392,7.87686591,188.82,188.78,2.1185221]
[1730957249578,7.87686591,188.82,188.79,2.1185221]
[1730957249782,7.87686591,188.82,188.8,2.1185221]
[1730957249988,24.01686591,188.83,188.81,2.1185221]
[1730957250195,24.01686591,188.83,188.82,2.1185221]
[1730957251092,24.01686591,188.83,188.76,7.87686591]
[1730957251293,7.87686591,188.82,188.77,2.11839959]
[1730957251477,7.87686591,188.81,188.78,2.11839959]
[1730957251682,7.87686591,188.82,188.79,2.11839959]
[1730957251880,16.14,188.83,188.72,15.1581]
[1730957251881,7.87686591,188.81,188.8,2.11839959]
[1730957254597,7.87686591,188.82,188.8,2.11839959]
[1730957254796,7.87686591,188.82,188.81,2.11839959]
[1730957257091,7.87686591,188.82,188.73,7.87686591]
[1730957257295,7.87686591,188.79,188.74,2.11858404]
[1730957257603,7.87686591,188.8,188.75,2.11858404]
[1730957257784,7.87686591,188.8,188.76,2.11858404]
[1730957258103,7.87686591,188.8,188.77,2.11858404]
[1730957258281,7.87686591,188.8,188.78,2.11858404]
[1730957258476,7.87686591,188.8,188.79,2.11858404]
[1730957260098,7.87686591,188.81,188.79,2.11858404]
[1730957260301,7.87686591,188.81,188.8,2.11858404]
[1730957260780,7.87686591,188.82,188.8,2.11858404]
[1730957260988,7.87686591,188.82,188.81,2.11858404]
[1730957261682,7.87686591,188.82,188.81,2.11845935]
[1730957269281,7.87686591,188.82,188.81,2.11854797]
[1730957269482,7.87686591,188.82,188.81,2.11854817]
[1730957271609,5.52782577,188.87,188.81,2.11854817]
[1730957271909,7.87686591,188.85,188.82,2.11854817]
[1730957272095,7.87686591,188.85,188.83,2.11854817]
[1730957272296,7.87686591,188.85,188.77,16.0595]
[1730957272510,7.87686591,188.85,188.79,7.87686591]
[1730957272707,7.87686591,188.85,188.8,2.118437]
[1730957272913,7.87686591,188.85,188.81,2.118437]
[1730957273104,7.87686591,188.82,188.73,23.776884]
[1730957273305,7.87686591,188.81,188.75,7.87686591]
[1730957273692,15.8371,188.85,188.76,7.87686591]
[1730957273894,7.87686591,188.83,188.76,7.87686591]
[1730957274409,15.8371,188.85,188.76,7.87686591]
[1730957274583,7.87686591,188.83,188.76,7.87686591]
[1730957274788,7.87686591,188.83,188.73,23.776884]
[1730957274988,7.87686591,188.83,188.76,7.87686591]
[1730957275597,7.87686591,188.83,188.77,7.87686591]
[1730957275796,7.87686591,188.84,188.77,7.87686591]
[1730957276598,7.87686591,188.84,188.78,7.87686591]
[1730957278291,7.87686591,188.87,188.8,7.87686591]
[1730957278486,7.87686591,188.86,188.8,7.87686591]
[1730957278705,7.87686591,188.85,188.79,7.87686591]
[1730957278919,7.87686591,188.85,188.78,15.6602]
[1730957279111,7.87686591,188.85,188.78,23.53706591]
[1730957281218,7.87686591,188.84,188.78,23.53706591]
[1730957282423,7.87686591,188.82,188.76,7.87686591]
[1730957282719,7.87686591,188.82,188.75,23.776884]
[1730957282905,7.87686591,188.82,188.76,7.87686591]
[1730957283308,7.87686591,188.83,188.76,7.87686591]
[1730957284817,7.87686591,188.78,188.7,16.6116]
[1730957285025,7.87686591,188.77,188.7,16.6116]
[1730957285522,7.87686591,188.77,188.71,7.87686591]
[1730957286225,7.87686591,188.77,188.7,24.48846591]
[1730957286411,7.87686591,188.77,188.71,7.87686591]
[1730957287214,27.5851,188.84,188.75,7.87686591]
[1730957287215,7.87686591,188.81,188.75,7.87686591]
[1730957287520,7.87686591,188.81,188.76,0.42083429]
[1730957288229,7.87686591,188.8,188.76,0.42083429]
[1730957289828,22.1895,188.84,188.76,0.42083429]
[1730957290022,7.87686591,188.8,188.76,0.42083429]
[1730957291608,7.87686591,188.79,188.76,0.42083429]
[1730957293630,7.87686591,188.78,188.76,0.42083429]
[1730957294733,7.87686591,188.78,188.72,7.87686591]
[1730957295028,7.87686591,188.78,188.76,0.41975821]
[1730957297822,7.87686591,188.77,188.76,0.41975821]
[1730957298214,22.1895,188.84,188.76,0.41978237]
[1730957298411,7.87686591,188.83,188.77,8.29664828]
[1730957298929,7.87686591,188.8,188.77,0.41978237]
[1730957299716,7.87686591,188.79,188.77,0.41978237]
[1730957300030,22.1895,188.84,188.76,0.41978237]
[1730957300240,7.87686591,188.81,188.77,0.41978237]
[1730957302116,7.87686591,188.81,188.74,7.87686591]
[1730957302717,7.87686591,188.81,188.77,0.42002831]
[1730957302919,7.87686591,188.81,188.74,7.87686591]
[1730957304013,7.87686591,188.81,188.77,0.42010026]
[1730957304215,7.87686591,188.81,188.74,7.87686591]
[1730957304513,7.87686591,188.81,188.77,0.42009743]
[1730957305011,7.87686591,188.8,188.77,0.42009743]
[1730957305742,7.87686591,188.78,188.77,0.42009743]
[1730957306437,7.87686591,188.78,188.76,0.42009743]
[1730957306637,7.87686591,188.79,188.76,0.42009743]
[1730957307309,7.87686591,188.79,188.72,7.87686591]
[1730957307514,7.87686591,188.79,188.76,0.41981874]
[1730957307819,7.87686591,188.79,188.77,0.41981874]
[1730957308235,7.87686591,188.79,188.76,0.41981874]
[1730957308438,22.1895,188.84,188.76,0.41981874]
[1730957308640,7.87686591,188.79,188.76,0.41981874]
[1730957310833,7.87686591,188.79,188.76,0.41677685]
[1730957311718,7.87686591,188.78,188.76,0.41677685]
[1730957311922,22.1895,188.84,188.76,0.41677685]
[1730957312259,7.87686591,188.81,188.76,0.41677685]
[1730957312949,7.87686591,188.81,188.77,0.41677685]
[1730957313331,7.87686591,188.78,188.77,0.41677685]
[1730957313527,7.87686591,188.78,188.76,0.41677685]
[1730957313528,6.20256037,188.78,188.76,0.41677685]
[1730957313752,14.07942628,188.78,188.73,0.41677685]
[1730957313927,7.87686591,188.74,188.73,0.41677685]
[1730957314248,7.87686591,188.74,188.66,9.21588553]
[1730957314546,7.87686591,188.73,188.67,7.87686591]
[1730957314771,7.87686591,188.74,188.68,23.776884]
[1730957315243,7.87686591,188.74,188.68,31.65374991]
[1730957315551,6.20256037,188.77,188.68,31.65374991]
[1730957315850,31.50746364,188.8,188.68,31.65374991]
[1730957315851,7.87686591,188.75,188.68,31.65374991]
[1730957317136,7.87686591,188.75,188.69,7.87686591]
[1730957317355,7.87686591,188.75,188.7,23.776884]
[1730957317852,7.87686591,188.76,188.7,23.776884]
[1730957318248,7.87686591,188.75,188.7,23.776884]
[1730957319258,6.20256037,188.81,188.7,31.65374991]
[1730957319432,7.87686591,188.76,188.7,31.65374991]
[1730957320232,7.87686591,188.77,188.7,31.65374991]
[1730957321834,7.87686591,188.77,188.71,7.87686591]
[1730957322341,7.87686591,188.77,188.7,31.65374991]
[1730957322752,7.87686591,188.76,188.7,23.776884]
[1730957322947,7.87686591,188.74,188.7,23.776884]
[1730957323155,7.87686591,188.75,188.68,7.87686591]
[1730957323858,7.87686591,188.75,188.69,7.87686591]
[1730957324855,7.87686591,188.76,188.69,7.87686591]
[1730957325867,7.87686591,188.74,188.66,23.776884]
[1730957326047,7.87686591,188.74,188.68,7.87686591]
[1730957327232,7.87686591,188.75,188.69,7.87686591]
[1730957329561,6.20256037,188.81,188.72,7.87686591]
[1730957329857,7.87686591,188.8,188.73,7.87686591]
[1730957330955,7.87686591,188.79,188.73,7.87686591]
[1730957333346,7.87686591,188.79,188.74,2.11868256]
[1730957333542,5.52825662,188.83,188.75,2.11868256]
[1730957333748,7.87686591,188.81,188.76,2.11868256]
[1730957333942,7.87686591,188.81,188.77,2.11868256]
[1730957334143,7.87686591,188.8,188.78,2.11868256]
[1730957334345,7.87686591,188.81,188.74,7.87686591]
[1730957334665,7.87686591,188.81,188.75,2.11867924]
[1730957334862,7.87686591,188.81,188.76,2.11867924]
[1730957335162,7.87686591,188.81,188.77,2.11867924]
[1730957335463,7.87686591,188.81,188.78,2.11867924]
[1730957335758,7.87686591,188.81,188.74,7.87686591]
[1730957335960,7.87686591,188.81,188.75,2.11867776]
[1730957336142,7.87686591,188.81,188.76,2.11867776]
[1730957336461,7.87686591,188.81,188.77,2.11867776]
[1730957336660,7.87686591,188.81,188.78,2.11867776]
[1730957336868,7.87686591,188.81,188.74,7.87686591]
[1730957337162,7.87686591,188.81,188.75,2.11868125]
[1730957337358,7.87686591,188.8,188.76,2.11868125]
[1730957337548,7.87686591,188.8,188.77,2.11868125]
[1730957337749,7.87686591,188.8,188.78,2.11868125]
[1730957338059,7.87686591,188.8,188.73,7.87686591]
[1730957338246,7.87686591,188.8,188.74,2.11868014]
[1730957338449,7.87686591,188.8,188.75,2.11868014]
[1730957338650,7.87686591,188.8,188.76,2.11868014]
[1730957338847,7.87686591,188.8,188.77,2.11868014]
[1730957339041,7.87686591,188.8,188.78,2.11868014]
[1730957339257,7.87686591,188.8,188.73,7.87686591]
[1730957339460,7.87686591,188.8,188.79,2.11867813]
[1730957340768,7.87686591,188.81,188.79,2.11867813]
[1730957341065,7.87686591,188.81,188.74,7.87686591]
[1730957341264,7.87686591,188.81,188.75,2.11868125]
[1730957341457,7.87686591,188.81,188.76,2.11868125]
[1730957341656,7.87686591,188.8,188.77,2.11868125]
[1730957342163,7.87686591,188.8,188.78,2.11868125]
[1730957342361,7.87686591,188.8,188.79,2.11868125]
[1730957343248,7.87686591,188.8,188.72,7.87686591]
[1730957343449,7.87686591,188.78,188.73,2.1187232]
[1730957343663,7.87686591,188.78,188.74,2.1187232]
[1730957343969,31.50746364,188.8,188.75,2.1187232]
[1730957344160,5.62129,188.83,188.76,2.1187232]
[1730957344467,22.1895,188.84,188.77,2.1187232]
[1730957344468,5.6247826,188.79,188.77,2.1187232]
[1730957344671,7.87686591,188.78,188.66,22.2523]
[1730957344877,5.6247826,188.79,188.69,7.87686591]
[1730957345164,7.87686591,188.75,188.7,2.11903611]
[1730957345372,7.87686591,188.75,188.69,7.87686591]
[1730957345669,7.87686591,188.75,188.7,2.11914427]
[1730957345840,7.87686591,188.75,188.71,2.11914427]
[1730957346040,7.87686591,188.75,188.72,2.11914427]
[1730957346267,7.87686591,188.75,188.73,2.11914427]
[1730957346449,7.87686591,188.75,188.74,2.11914427]
[1730957347466,7.87686591,188.76,188.74,2.11914427]
[1730957347643,7.87686591,188.76,188.69,7.87686591]
[1730957348060,7.87686591,188.75,188.67,23.776884]
[1730957348263,7.87686591,188.75,188.68,7.87686591]
[1730957348866,7.87686591,188.75,188.69,7.87686591]
[1730957349372,7.87686591,188.75,188.68,7.87686591]
[1730957350469,7.87686591,188.75,188.69,7.87686591]
[1730957353370,7.87686591,188.74,188.66,15.6516]
[1730957353579,7.87686591,188.74,188.68,7.87686591]
[1730957354459,7.87686591,188.71,188.66,15.6516]
[1730957354774,7.87686591,188.72,188.66,7.87686591]
[1730957355765,7.87686591,188.71,188.65,7.87686591]
[1730957357152,7.87686591,188.7,188.62,15.1124]
[1730957357354,7.87686591,188.69,188.63,7.87686591]
[1730957362662,7.87686591,188.7,188.64,7.87686591]
[1730957363148,27.40602245,188.76,188.62,15.1124]
[1730957363149,7.87686591,188.72,188.66,7.87686591]
[1730957364469,7.87686591,188.7,188.59,20.0]
[1730957364667,7.87686591,188.7,188.64,7.87686591]
[1730957365370,7.87686591,188.71,188.64,7.87686591]
[1730957366753,27.30602245,188.76,188.65,7.87686591]
[1730957366952,7.87686591,188.72,188.66,7.87686591]
[1730957367682,7.87686591,188.71,188.65,7.87686591]
[1730957374664,7.87686591,188.71,188.64,7.87686591]
[1730957374985,7.87686591,188.71,188.66,0.40974594]
[1730957376054,7.87686591,188.71,188.66,0.40981294]
[1730957378459,7.87686591,188.71,188.65,8.28667885]
[1730957379800,7.87686591,188.71,188.65,8.28658188]
[1730957380459,7.87686591,188.71,188.64,8.28658188]
[1730957381468,7.87686591,188.71,188.65,0.40971597]
[1730957382570,7.87686591,188.71,188.65,8.28658188]
[1730957383385,7.87686591,188.71,188.65,0.409395]
[1730957383561,0.12549,188.75,188.65,8.28626091]
[1730957383768,7.87686591,188.72,188.65,8.28626091]
[1730957383965,27.30602245,188.76,188.69,7.87686591]
[1730957384168,7.87686591,188.75,188.69,7.87686591]
[1730957387789,21.7786,188.76,188.7,7.87686591]
[1730957387966,29.65546591,188.76,188.7,7.87686591]
[1730957388390,29.65546591,188.76,188.69,7.87686591]
[1730957388871,29.65546591,188.76,188.68,0.409395]
[1730957388872,29.65546591,188.76,188.7,7.87686591]
[1730957389875,29.65546591,188.76,188.69,7.87686591]
[1730957391289,23.14316591,188.76,188.69,7.87686591]
[1730957392488,23.14316591,188.76,188.7,7.87686591]
[1730957392963,7.87686591,188.76,188.7,7.87686591]
[1730957393773,7.87686591,188.77,188.7,7.87686591]
[1730957394086,13.23785082,188.8,188.71,7.87686591]
[1730957394087,7.87686591,188.78,188.71,7.87686591]
[1730957396172,6.409,188.8,188.71,7.87686591]
[1730957396388,7.87686591,188.78,188.71,7.87686591]
[1730957399689,6.409,188.8,188.72,7.87686591]
[1730957399876,7.87686591,188.78,188.72,7.87686591]
[1730957400082,7.87686591,188.78,188.71,8.286748]
[1730957400387,7.87686591,188.78,188.71,0.40988209]
[1730957400583,7.87686591,188.78,188.71,8.286748]
[1730957401179,7.87686591,188.78,188.71,7.87686591]
[1730957401371,7.87686591,188.76,188.7,0.40988209]
[1730957401684,7.87686591,188.75,188.7,0.40988209]
[1730957402307,7.87686591,188.74,188.7,0.40988209]
[1730957402674,7.87686591,188.73,188.7,0.40988209]
[1730957402875,7.87686591,188.74,188.7,0.40988209]
[1730957403471,7.87686591,188.74,188.7,0.40929706]
[1730957404891,15.0515,188.81,188.7,0.40929706]
[1730957405098,7.87686591,188.75,188.71,0.40929706]
[1730957405875,0.12549,188.79,188.72,7.87686591]
[1730957406078,7.87686591,188.76,188.71,0.40929706]
[1730957406290,7.87686591,188.75,188.71,0.40929706]
[1730957406496,0.12549,188.79,188.71,0.40929706]
[1730957406681,11.93000809,188.8,188.71,0.40929706]
[1730957406878,7.87686591,188.76,188.71,0.40929706]
[1730957407686,7.87686591,188.74,188.72,2.11898799]
[1730957407894,7.87686591,188.74,188.73,2.11898799]
[1730957408193,7.87686591,188.75,188.73,2.11901364]
[1730957408393,7.87686591,188.74,188.7,0.4098008]
[1730957408710,7.87686591,188.75,188.71,2.11901474]
[1730957408879,7.87686591,188.74,188.72,2.11901474]
[1730957409199,22.29529,188.74,188.73,2.11901474]
[1730957409502,0.12549,188.73,188.68,0.4098008]
[1730957409690,7.87686591,188.71,188.69,2.11931537]
[1730957409892,7.87686591,188.71,188.7,2.11931537]
[1730957410698,7.87686591,188.71,188.7,2.11937426]
[1730957413601,8.00235591,188.71,188.7,2.11937426]
[1730957413791,0.12549,188.71,188.7,2.11937426]
[1730957414106,8.00235591,188.71,188.7,2.11937426]
[1730957414681,0.12549,188.7,188.62,7.87686591]
[1730957414907,7.87686591,188.68,188.63,2.11976509]
[1730957415087,7.87686591,188.68,188.64,2.11976509]
[1730957415406,7.87686591,188.68,188.65,2.11976509]
[1730957415605,7.87686591,188.68,188.66,2.11976509]
[1730957415903,7.87686591,188.68,188.67,2.11976509]
[1730957417493,7.87686591,188.68,188.63,7.87686591]
[1730957417790,7.87686591,188.68,188.64,2.11987049]
[1730957418004,7.87686591,188.68,188.65,2.11987049]
[1730957418301,7.87686591,188.68,188.66,2.11987049]
[1730957418501,7.87686591,188.68,188.63,7.87686591]
[1730957418702,7.87686591,188.68,188.64,2.11987049]
[1730957418906,7.87686591,188.68,188.65,2.11987049]
[1730957419205,7.87686591,188.68,188.66,2.11987049]
[1730957419396,7.87686591,188.67,188.6,7.87686591]
[1730957419593,5.52409,188.73,188.61,2.11992254]
[1730957419812,0.12549,188.72,188.62,2.11992254]
[1730957420015,0.12549,188.72,188.63,2.11992254]
[1730957420189,0.12549,188.72,188.64,2.11992254]
[1730957420498,7.87686591,188.68,188.65,2.11992254]
[1730957420700,7.87686591,188.68,188.66,2.11992254]
[1730957421012,7.87686591,188.68,188.62,7.87686591]
[1730957421207,7.87686591,188.68,188.63,2.11989211]
[1730957421418,7.87686591,188.68,188.64,2.11989211]
[1730957421708,27.80042971,188.74,188.65,2.11989211]
[1730957422005,7.87686591,188.71,188.66,2.11989211]
[1730957422217,7.87686591,188.7,188.64,7.87686591]
[1730957422525,7.87686591,188.7,188.65,2.11992964]
[1730957422806,7.87686591,188.7,188.66,2.11992964]
[1730957423022,7.87686591,188.7,188.64,7.87686591]
[1730957423310,7.87686591,188.7,188.65,2.11985357]
[1730957423501,7.87686591,188.7,188.66,2.11985357]
[1730957423695,7.87686591,188.7,188.64,7.87686591]
[1730957423893,7.87686591,188.7,188.65,2.11986737]
[1730957424093,7.87686591,188.7,188.66,2.11986737]
[1730957424295,7.87686591,188.7,188.64,7.87686591]
[1730957424616,7.87686591,188.7,188.65,2.11986737]
[1730957425013,27.70042971,188.74,188.66,2.11986737]
[1730957425222,7.87686591,188.73,188.67,9.99653835]
[1730957425510,7.87686591,188.73,188.68,2.11967244]
[1730957425714,7.87686591,188.73,188.67,7.87686591]
[1730957425917,7.87686591,188.73,188.68,2.11964719]
[1730957426219,7.87686591,188.73,188.67,7.87686591]
[1730957426392,7.87686591,188.73,188.68,2.11959223]
[1730957426588,7.87686591,188.73,188.67,7.87686591]
[1730957426793,7.87686591,188.73,188.68,2.11959002]
[1730957427012,7.87686591,188.73,188.69,2.1195806]
[1730957427215,7.87686591,188.73,188.67,7.87686591]
[1730957430694,7.87686591,188.72,188.66,7.87686591]
[1730957431096,7.87686591,188.72,188.68,2.11957094]
[1730957431617,7.87686591,188.71,188.68,2.11957094]
[1730957432115,7.87686591,188.71,188.69,2.1194333]
[1730957432336,7.87686591,188.72,188.68,2.11957094]
[1730957432528,7.87686591,188.72,188.69,2.1194064]
[1730957432816,7.87686591,188.73,188.7,2.1194064]
[1730957432998,7.87686591,188.73,188.68,2.11957094]
[1730957433199,7.87686591,188.73,188.69,2.11941277]
[1730957433398,7.87686591,188.73,188.7,2.11941277]
[1730957433617,7.87686591,188.73,188.68,2.11957094]
[1730957433803,7.87686591,188.73,188.69,2.11941141]
[1730957434005,7.87686591,188.73,188.7,2.11941141]
[1730957434304,7.87686591,188.73,188.68,2.11957094]
[1730957434516,7.87686591,188.73,188.69,2.11940856]
[1730957434693,7.87686591,188.73,188.7,2.11940856]
[1730957434898,22.1698,188.74,188.68,2.11957094]
[1730957435122,30.04666591,188.74,188.69,2.11941182]
[1730957435420,30.04666591,188.74,188.68,2.11957094]
[1730957435421,7.87686591,188.73,188.7,2.11941182]
[1730957435596,7.87686591,188.73,188.68,2.11957094]
[1730957435800,7.87686591,188.73,188.69,2.1193752]
[1730957436002,7.87686591,188.73,188.7,2.1193752]
[1730957436219,7.87686591,188.73,188.68,2.11957094]
[1730957436391,7.87686591,188.73,188.69,2.11937604]
[1730957436598,7.87686591,188.74,188.7,2.11937604]
[1730957436820,7.87686591,188.74,188.71,2.11933749]
[1730957436996,7.87686591,188.74,188.68,9.99643685]
[1730957437194,7.87686591,188.74,188.69,2.11936821]
[1730957437416,7.87686591,188.74,188.7,2.119359]
[1730957437627,7.87686591,188.74,188.68,9.99643685]
[1730957437812,7.87686591,188.74,188.69,2.11935937]
[1730957437999,7.87686591,188.74,188.68,9.99643685]
[1730957438200,7.87686591,188.74,188.69,2.11933501]
[1730957438498,7.87686591,188.74,188.7,2.11933501]
[1730957438717,7.87686591,188.74,188.68,2.11957094]
[1730957438911,7.87686591,188.74,188.69,2.11935179]
[1730957439222,7.87686591,188.74,188.7,2.11935179]
[1730957439424,7.87686591,188.74,188.68,2.11957094]
[1730957439610,7.87686591,188.73,188.69,2.11936886]
[1730957439809,7.87686591,188.73,188.7,2.11936886]
[1730957440016,7.87686591,188.73,188.68,2.11957094]
[1730957440216,7.87686591,188.73,188.69,2.1193608]
[1730957440418,7.87686591,188.73,188.7,2.1193608]
[1730957440607,7.87686591,188.73,188.68,2.11957094]
[1730957440804,7.87686591,188.73,188.69,2.11936046]
[1730957441013,7.87686591,188.73,188.7,2.11936046]
[1730957441306,7.87686591,188.73,188.68,2.11957094]
[1730957441526,7.87686591,188.73,188.69,2.11936039]
[1730957441725,7.87686591,188.74,188.7,2.11936039]
[1730957441910,7.87686591,188.74,188.67,7.87686591]
[1730957442109,7.87686591,188.72,188.68,2.11936108]
[1730957442423,7.87686591,188.72,188.69,2.11936108]
[1730957442620,7.87686591,188.73,188.7,2.11936108]
[1730957442806,7.87686591,188.73,188.66,7.87686591]
[1730957443007,7.87686591,188.73,188.67,2.11936224]
[1730957443329,7.87686591,188.73,188.68,2.11936166]
[1730957443506,7.87686591,188.73,188.66,7.87686591]
[1730957443507,7.87686591,188.73,188.69,2.11936166]
[1730957443712,7.87686591,188.73,188.7,2.11936166]
[1730957443908,7.87686591,188.73,188.66,7.87686591]
[1730957444132,7.87686591,188.73,188.67,2.11936142]
[1730957444308,7.87686591,188.73,188.68,2.11936142]
[1730957444507,7.87686591,188.73,188.69,2.11936142]
[1730957444708,7.87686591,188.73,188.7,2.11936142]
[1730957444928,7.87686591,188.73,188.66,7.87686591]
[1730957445230,7.87686591,188.73,188.67,2.11935994]
[1730957445417,7.87686591,188.73,188.68,2.11935994]
[1730957445627,7.87686591,188.73,188.69,2.11935994]
[1730957445823,7.87686591,188.73,188.7,2.11935994]
[1730957446008,7.87686591,188.73,188.66,7.87686591]
[1730957446211,7.87686591,188.73,188.67,2.11936164]
[1730957446411,7.87686591,188.73,188.68,2.11936164]
[1730957446629,7.87686591,188.73,188.69,2.11936164]
[1730957446821,7.87686591,188.73,188.7,2.11936164]
[1730957447011,7.87686591,188.73,188.66,7.87686591]
[1730957447215,7.87686591,188.73,188.67,2.11936214]
[1730957447509,7.87686591,188.73,188.68,2.11936214]
[1730957447714,7.87686591,188.73,188.69,2.11936214]
[1730957448022,7.87686591,188.73,188.7,2.11936214]
[1730957448338,7.87686591,188.73,188.66,7.87686591]
[1730957448534,7.87686591,188.73,188.67,2.11937028]
[1730957448736,7.87686591,188.73,188.68,2.11937028]
[1730957448930,7.87686591,188.73,188.69,2.11937028]
[1730957449236,7.87686591,188.73,188.7,2.11937028]
[1730957449415,7.87686591,188.73,188.66,7.87686591]
[1730957450403,7.87686591,188.73,188.64,16.4712]
[1730957450626,7.87686591,188.73,188.67,7.87686591]
[1730957451434,7.87686591,188.74,188.67,7.87686591]
[1730957452919,7.87686591,188.74,188.68,7.87686591]
[1730957453320,0.12549,188.76,188.68,7.87686591]
[1730957453511,7.87686591,188.75,188.69,7.87686591]
[1730957453940,7.87686591,188.75,188.68,7.87686591]
[1730957454843,5.5275385,188.77,188.7,7.87686591]
[1730957455022,13.40440441,188.77,188.71,7.87686591]
[1730957455337,24.01486591,188.79,188.72,7.87686591]
[1730957455522,7.87686591,188.79,188.72,7.87686591]
[1730957456024,5.52825491,188.8,188.73,7.87686591]
[1730957456216,7.87686591,188.79,188.73,7.87686591]
[1730957456822,5.52825491,188.8,188.73,7.87686591]
[1730957457035,7.87686591,188.79,188.73,7.87686591]
[1730957458409,7.87686591,188.78,188.73,7.87686591]
[1730957458819,7.87686591,188.78,188.72,7.87686591]
[1730957459916,7.87686591,188.79,188.73,7.87686591]
[1730957460526,7.87686591,188.78,188.72,7.87686591]
[1730957461831,7.87686591,188.77,188.68,23.776884]
[1730957462031,7.87686591,188.77,188.7,7.87686591]
[1730957462344,7.87686591,188.78,188.71,7.87686591]
[1730957462834,7.87686591,188.77,188.71,7.87686591]
[1730957464321,5.52825491,188.8,188.71,7.87686591]
[1730957464624,7.87686591,188.77,188.7,7.87686591]
[1730957468622,7.87686591,188.76,188.7,7.87686591]
[1730957470442,7.87686591,188.76,188.69,8.28659719]
[1730957470747,7.87686591,188.76,188.7,7.87686591]
[1730957471838,7.87686591,188.75,188.69,0.40973128]
[1730957472136,7.87686591,188.74,188.68,0.40973128]
[1730957472937,7.87686591,188.74,188.68,8.28659719]
[1730957473135,21.821,188.78,188.7,7.87686591]
[1730957473348,7.87686591,188.76,188.7,7.87686591]
[1730957475744,7.87686591,188.76,188.69,8.28624053]
[1730957476148,21.821,188.78,188.69,8.28624053]
[1730957476446,7.87686591,188.76,188.7,7.87686591]
[1730957477022,7.87686591,188.77,188.71,7.87686591]
[1730957477223,7.87686591,188.78,188.72,7.87686591]
[1730957477528,7.87686591,188.79,188.73,7.87686591]
[1730957478150,10.64666837,188.82,188.74,7.87686591]
[1730957478455,7.87686591,188.81,188.75,7.87686591]
[1730957480332,7.87686591,188.8,188.73,0.40961914]
[1730957480546,7.87686591,188.8,188.73,8.28648505]
[1730957480750,7.87686591,188.8,188.74,7.87686591]
[1730957480928,7.87686591,188.8,188.72,0.40961914]
[1730957481129,7.87686591,188.79,188.73,7.87686591]
[1730957482356,7.87686591,188.79,188.72,0.40992965]
[1730957482529,7.87686591,188.79,188.73,7.87686591]
[1730957482730,7.87686591,188.79,188.72,0.40992965]
[1730957482929,7.87686591,188.79,188.72,8.28679556]
[1730957484025,7.87686591,188.79,188.72,0.40992965]
[1730957484231,7.87686591,188.76,188.72,0.40992965]
[1730957484757,7.87686591,188.77,188.72,0.40992965]
[1730957485843,7.87686591,188.77,188.72,0.40990248]
[1730957486858,0.12549,188.81,188.72,0.40990248]
[1730957487158,7.87686591,188.77,188.72,0.40990248]
[1730957487559,7.87686591,188.78,188.72,0.40990248]
[1730957489150,7.87686591,188.78,188.71,7.87686591]
[1730957489455,7.87686591,188.78,188.72,0.41007446]
[1730957489651,7.87686591,188.78,188.72,0.41002729]
[1730957489830,7.87686591,188.78,188.72,0.4100282]
[1730957492376,7.87686591,188.75,188.72,0.410032]
[1730957492662,7.87686591,188.75,188.69,1.26471624]
[1730957492965,7.87686591,188.76,188.69,1.26471624]
[1730957497264,0.12549,188.81,188.7,7.87686591]
[1730957497581,7.87686591,188.76,188.7,8.28342922]
[1730957499853,7.87686591,188.76,188.7,0.40656331]
[1730957502072,0.12549,188.81,188.7,8.28342922]
[1730957502253,7.87686591,188.76,188.7,8.28342922]
[1730957502574,7.87686591,188.76,188.72,0.40656331]
[1730957504074,7.87686591,188.76,188.72,0.40669569]
[1730957505476,7.87686591,188.76,188.64,96.3]
[1730957505477,8.00235591,188.73,188.7,0.40669569]
[1730957505676,7.87686591,188.71,188.66,0.40669569]
[1730957505847,7.87686591,188.67,188.65,0.40669569]
[1730957506281,7.87686591,188.67,188.58,6.4367]
[1730957506282,7.87686591,188.67,188.64,0.40669569]
[1730957506453,7.87686591,188.66,188.63,0.40669569]
[1730957506959,7.87686591,188.67,188.63,0.40669569]
[1730957507277,7.87686591,188.7,188.63,8.2835616]
[1730957507446,7.87686591,188.7,188.64,0.40669569]
[1730957508074,7.87686591,188.7,188.64,0.4065718]
[1730957508970,7.87686591,188.69,188.64,0.4065718]
[1730957509553,7.87686591,188.69,188.65,2.1196262]
[1730957509755,7.87686591,188.69,188.64,0.4065718]
[1730957509756,7.87686591,188.68,188.66,2.1196262]
[1730957509956,7.87686591,188.69,188.67,2.1196262]
[1730957510173,7.87686591,188.69,188.68,2.1196262]
[1730957510675,8.00235591,188.69,188.68,2.1196262]
[1730957510881,8.00235591,188.69,188.63,0.4065718]
[1730957511059,7.87686591,188.66,188.59,7.87686591]
[1730957511261,0.12549,188.69,188.63,0.40537456]
[1730957511462,0.12549,188.69,188.64,2.1196945]
[1730957511463,7.87686591,188.67,188.64,2.1196945]
[1730957511776,7.87686591,188.67,188.65,2.1196945]
[1730957511952,7.87686591,188.67,188.66,2.1196945]
[1730957513169,0.12549,188.69,188.66,2.1196945]